bitfinex-derivatives/quotes_SOLF0:USTF0_20250206
["timestamp","ask_amount","ask_price","bid_price","bid_amount"]
[1738802538598,5.09410339,197.78,197.72,5.0573]
[1738802538799,0.03810339,197.78,197.71,5.09599713]
[1738802538999,0.03810339,197.78,197.71,0.03839713]
[1738802539395,5.0568,197.75,197.71,0.03839713]
[1738802540302,0.03810339,197.78,197.71,0.03839713]
[1738802541198,5.0564,197.76,197.71,0.03839713]
[1738802541397,0.03810339,197.78,197.71,0.03839713]
[1738802542700,22.04780406,197.77,197.71,0.03839713]
[1738802544508,0.03810339,197.78,197.71,0.03839713]
[1738802545203,5.09400339,197.78,197.71,0.03839713]
[1738802545505,0.03810339,197.78,197.57,9.38354228]
[1738802545702,13.80835375,197.64,197.55,11.11122204]
[1738802546000,13.80835375,197.64,197.5,3.1113]
[1738802546205,5.0598,197.63,197.55,5.0614]
[1738802546703,0.03592699,197.61,197.57,0.03541355]
[1738802549406,0.03592699,197.61,197.57,5.09661355]
[1738802554006,0.03592699,197.61,197.57,0.03541355]
[1738802556106,0.03592699,197.61,197.58,5.0609]
[1738802556612,0.03592699,197.61,197.57,0.03541355]
[1738802558016,0.03592699,197.61,197.58,5.0609]
[1738802560014,0.03592699,197.61,197.57,0.03541355]
[1738802560509,0.03592699,197.61,197.58,5.0609]
[1738802560714,0.03592699,197.61,197.57,0.03541355]
[1738802562319,5.09632699,197.61,197.57,0.03541355]
[1738802563522,0.03592699,197.61,197.57,0.03541355]
[1738802563721,5.0605,197.6,197.57,0.03541355]
[1738802566725,18.8958114,197.6,197.57,0.03541355]
[1738802569021,0.03592699,197.61,197.57,5.09651355]
[1738802569228,0.03592699,197.61,197.57,0.03541355]
[1738802569628,13.8353114,197.6,197.57,5.09661355]
[1738802569827,13.8353114,197.6,197.57,0.03541355]
[1738802571229,0.03592699,197.61,197.57,0.03541355]
[1738802571724,5.0609,197.58,197.57,1.355e-05]
[1738802571930,13.8353114,197.59,197.43,13.8353114]
[1738802572226,13.8353114,197.55,197.43,13.8353114]
[1738802572934,0.0353057,197.51,197.47,0.03862883]
[1738802574630,13.8353114,197.64,197.5,13.8353114]
[1738802574834,13.8353114,197.64,197.51,3.0668]
[1738802575029,13.8353114,197.64,197.57,5.0611]
[1738802575030,18.8949114,197.64,197.57,5.0611]
[1738802575233,13.8353114,197.58,197.51,3.0668]
[1738802575735,0.03839531,197.56,197.53,0.03797563]
[1738802577632,0.03839531,197.56,197.55,5.0617]
[1738802577939,13.8353114,197.64,197.53,0.03797563]
[1738802578129,5.0591,197.66,197.59,5.0606]
[1738802578332,13.8353114,197.67,197.53,13.8353114]
[1738802578533,13.8353114,197.7,197.56,13.8353114]
[1738802578840,0.03322399,197.65,197.61,0.0319256]
[1738802579532,0.03322399,197.65,197.62,5.0599]
[1738802580238,0.03322399,197.65,197.61,0.0319256]
[1738802580239,0.03322399,197.65,197.64,5.0594]
[1738802580436,13.8353114,197.76,197.62,15.3193114]
[1738802580637,20.92395568,197.77,197.71,5.0576]
[1738802581040,13.8353114,197.76,197.63,1.5142]
[1738802581343,5.058,197.7,197.63,1.5142]
[1738802581540,0.03761324,197.71,197.68,0.03358557]
[1738802582045,5.09521324,197.71,197.68,0.03358557]
[1738802582241,0.03761324,197.71,197.68,0.03358557]
[1738802582734,5.0579,197.7,197.68,0.03358557]
[1738802582940,13.8353114,197.7,197.68,0.03358557]
[1738802583742,5.0581,197.69,197.68,0.03358557]
[1738802584650,13.8353114,197.7,197.68,0.03358557]
[1738802585147,5.09541324,197.71,197.68,0.03358557]
[1738802586544,5.0579,197.7,197.68,0.03358557]
[1738802586751,13.8353114,197.7,197.6,1.5348]
[1738802587044,13.8353114,197.67,197.6,1.5348]
[1738802587450,18.8942114,197.67,197.6,6.595]
[1738802587647,13.8353114,197.67,197.6,6.595]
[1738802587847,0.03554903,197.65,197.62,0.03800112]
[1738802588049,0.03554903,197.65,197.63,5.0596]
[1738802588246,13.8353114,197.73,197.62,0.03800112]
[1738802588452,34.75926708,197.79,197.65,13.8353114]
[1738802588651,34.75926708,197.79,197.68,13.8353114]
[1738802588847,20.92395568,197.79,197.68,13.8353114]
[1738802589653,0.03561571,197.75,197.72,0.0333301]
[1738802589852,0.03561571,197.75,197.74,5.0568]
[1738802590453,20.92395568,197.8,197.75,5.0563]
[1738802591553,0.03804769,197.79,197.72,0.0333301]
[1738802592151,13.87335909,197.79,197.72,0.0333301]
[1738802592358,13.8353114,197.75,197.72,0.0333301]
[1738802593256,13.8353114,197.75,197.62,5.0597]
[1738802593456,13.8353114,197.75,197.6,3.88]
[1738802593457,13.8353114,197.72,197.61,1.5879]
[1738802594057,5.0578,197.71,197.61,1.5879]
[1738802594458,0.03714248,197.68,197.64,0.03681608]
[1738802594957,0.03714248,197.68,197.65,5.0591]
[1738802595364,0.03714248,197.68,197.64,0.03681608]
[1738802596560,5.09554248,197.68,197.64,0.03681608]
[1738802599263,0.03714248,197.68,197.64,5.09621608]
[1738802600053,0.03714248,197.68,197.65,5.0591]
[1738802601661,0.03714248,197.68,197.64,0.03681608]
[1738802602366,0.03714248,197.68,197.65,5.0591]
[1738802602569,0.03714248,197.68,197.64,0.03681608]
[1738802602963,5.0591,197.66,197.64,0.03681608]
[1738802605572,5.0591,197.65,197.64,0.03681608]
[1738802606970,0.03714248,197.68,197.64,0.03681608]
[1738802607165,5.0588,197.67,197.64,0.03681608]
[1738802608064,5.0589,197.66,197.64,0.03681608]
[1738802608568,5.0591,197.65,197.64,0.03681608]
[1738802608963,0.03714248,197.68,197.64,0.03681608]
[1738802609170,5.0588,197.67,197.64,0.03681608]
[1738802609370,0.03714248,197.68,197.64,0.03681608]
[1738802609867,5.0591,197.65,197.64,0.03681608]
[1738802613477,0.03714248,197.68,197.64,0.03681608]
[1738802614672,5.0591,197.65,197.64,0.03681608]
[1738802616469,13.8353114,197.66,197.53,4.7744]
[1738802616675,5.0607,197.59,197.53,4.7744]
[1738802617271,5.0607,197.59,197.54,5.062]
[1738802617576,0.03206195,197.58,197.55,0.03597197]
[1738802617873,0.03206195,197.58,197.55,5.09767197]
[1738802618072,0.03206195,197.58,197.55,0.03597197]
[1738802620074,5.09306195,197.58,197.55,0.03597197]
[1738802620275,0.03206195,197.58,197.55,0.03597197]
[1738802620677,5.0612,197.57,197.55,0.03597197]
[1738802621079,5.0612,197.57,197.41,13.8353114]
[1738802621080,13.8353114,197.57,197.41,13.8353114]
[1738802621278,13.8353114,197.5,197.41,1.6195]
[1738802621579,5.0641,197.46,197.41,1.6195]
[1738802622276,0.03222868,197.45,197.42,0.03280731]
[1738802623081,13.8353114,197.53,197.42,0.03280731]
[1738802623275,13.8353114,197.53,197.44,5.0644]
[1738802623978,0.03749301,197.5,197.47,0.03426884]
[1738802625377,5.10049301,197.5,197.47,0.03426884]
[1738802625676,13.87280441,197.5,197.47,0.03426884]
[1738802625870,5.0635,197.48,197.47,0.03426884]
[1738802627974,13.87280441,197.5,197.47,0.03426884]
[1738802628282,0.03749301,197.5,197.47,0.03426884]
[1738802629880,5.10059301,197.5,197.47,0.03426884]
[1738802630478,0.03749301,197.5,197.47,0.03426884]
[1738802630679,0.03749301,197.5,197.47,5.09776884]
[1738802630879,0.03749301,197.5,197.47,0.03426884]
[1738802631080,0.03749301,197.5,197.48,5.0635]
[1738802632684,5.0622,197.54,197.49,5.0632]
[1738802632879,5.0615,197.56,197.48,1.6278]
[1738802633081,13.8353114,197.59,197.48,1.6278]
[1738802633783,13.8353114,197.59,197.52,0.0329334]
[1738802633784,0.0370559,197.55,197.52,0.0329334]
[1738802633974,5.0988559,197.55,197.52,0.0329334]
[1738802634180,0.0370559,197.55,197.52,0.0329334]
[1738802636387,0.0370559,197.55,197.52,5.0953334]
[1738802636788,0.0370559,197.55,197.52,0.0329334]
[1738802637089,0.0370559,197.55,197.53,5.0622]
[1738802637984,13.8353114,197.62,197.52,0.0329334]
[1738802638179,5.06,197.62,197.52,0.0329334]
[1738802638585,13.8353114,197.65,197.55,5.0617]
[1738802639183,0.0365771,197.62,197.58,0.03456757]
[1738802639584,5.0604,197.61,197.58,0.03456757]
[1738802639883,0.0365771,197.62,197.58,0.03456757]
[1738802640488,5.0965771,197.62,197.58,0.03456757]
[1738802640787,0.0365771,197.62,197.58,0.03456757]
[1738802642587,0.0365771,197.62,197.59,5.0607]
[1738802642787,0.0365771,197.62,197.59,6.5616]
[1738802643584,5.0602,197.61,197.58,0.03456757]
[1738802643791,0.0365771,197.62,197.58,0.03456757]
[1738802644389,5.0602,197.61,197.58,0.03456757]
[1738802644987,0.0365771,197.62,197.58,0.03456757]
[1738802645186,18.8960114,197.59,197.58,0.03456757]
[1738802647292,13.8353114,197.59,197.51,1.5478]
[1738802647496,5.0617,197.55,197.51,1.5478]
[1738802647891,13.8353114,197.59,197.51,1.5478]
[1738802648494,0.03281717,197.57,197.53,0.03755637]
[1738802648994,5.0615,197.56,197.53,0.03755637]
[1738802649196,0.03281717,197.57,197.53,0.03755637]
[1738802649394,5.0615,197.56,197.53,0.03755637]
[1738802652595,5.062,197.54,197.53,0.03755637]
[1738802654394,13.8353114,197.56,197.53,0.03755637]
[1738802654597,0.03281717,197.57,197.53,0.03755637]
[1738802656095,0.03281717,197.57,197.55,5.0616]
[1738802656897,0.03281717,197.57,197.53,0.03755637]
[1738802657103,0.03281717,197.57,197.54,5.0619]
[1738802660005,0.03281717,197.57,197.53,5.09975637]
[1738802660899,0.03281717,197.57,197.53,0.03755637]
[1738802661204,13.8353114,197.56,197.53,0.03755637]
[1738802661802,0.03281717,197.57,197.53,0.03755637]
[1738802663200,0.03281717,197.57,197.54,5.0617]
[1738802664506,0.03281717,197.57,197.53,0.03755637]
[1738802664704,0.03281717,197.57,197.55,5.0617]
[1738802665602,13.8353114,197.65,197.53,0.03755637]
[1738802665796,13.8353114,197.65,197.5,13.8353114]
[1738802666598,5.0597,197.63,197.57,5.061]
[1738802666908,0.03661981,197.59,197.56,13.86825802]
[1738802667107,20.92395568,197.66,197.57,3.112]
[1738802668309,0.03514102,197.63,197.57,3.112]
[1738802669609,20.92395568,197.66,197.59,13.8353114]
[1738802670205,5.568e-05,197.66,197.65,5.0591]
[1738802670605,200.51805548,197.72,197.65,5.0591]
[1738802670606,5.568e-05,197.72,197.65,5.0591]
[1738802670898,0.03300034,197.67,197.64,0.03544696]
[1738802675713,0.03300034,197.67,197.64,5.09464696]
[1738802676204,0.03300034,197.67,197.64,0.03544696]
[1738802676411,0.03300034,197.67,197.65,5.059]
[1738802676614,0.03300034,197.67,197.64,0.03544696]
[1738802677117,13.8353114,197.8,197.65,13.8353114]
[1738802677316,13.8353114,197.8,197.66,1.5119]
[1738802677911,5.0563,197.77,197.71,5.0575]
[1738802678117,0.03282095,197.75,197.71,0.03316227]
[1738802678617,0.03282095,197.75,197.71,5.09066227]
[1738802680113,0.03282095,197.75,197.74,5.0568]
[1738802680411,0.03282095,197.75,197.72,1.4759]
[1738802681817,0.03282095,197.75,197.72,6.533]
[1738802682120,0.03282095,197.75,197.72,1.4759]
[1738802682711,0.03282095,197.75,197.71,0.03316227]
[1738802684025,13.8353114,197.89,197.73,13.8353114]
[1738802684313,13.8353114,197.89,197.77,13.8353114]
[1738802684717,5.0526,197.91,197.84,5.0541]
[1738802684918,13.8353114,197.92,197.84,5.0541]
[1738802685118,0.03536824,197.89,197.86,0.03262828]
[1738802686714,5.08836824,197.89,197.86,0.03262828]
[1738802688022,5.0533,197.88,197.86,0.03262828]
[1738802688222,0.03536824,197.89,197.86,0.03262828]
[1738802688923,5.0535,197.87,197.86,0.03262828]
[1738802696331,0.03536824,197.89,197.86,0.03262828]
[1738802697228,5.0535,197.88,197.86,0.03262828]
[1738802699435,0.03536824,197.89,197.86,0.03262828]
[1738802699931,0.03536824,197.89,197.86,5.08632828]
[1738802700232,0.03536824,197.89,197.86,0.03262828]
[1738802700432,0.03536824,197.89,197.88,5.0533]
[1738802700634,5.051,197.98,197.86,13.86793968]
[1738802700831,5.051,197.98,197.89,13.8353114]
[1738802701028,5.051,197.98,197.93,5.052]
[1738802701228,5.051,197.97,197.89,13.8353114]
[1738802701631,16.8692114,198.01,197.87,3.0488]
[1738802701841,13.86995607,197.95,197.91,0.03778949]
[1738802702327,0.03464467,197.95,197.91,0.03778949]
[1738802702731,0.03464467,197.95,197.92,5.0522]
[1738802702936,0.03464467,197.95,197.91,0.03778949]
[1738802703538,13.86995607,197.95,197.91,0.03778949]
[1738802703938,5.0536,197.87,197.82,8.0957]
[1738802704734,5.0539,197.86,197.82,6.5486]
[1738802704938,5.0539,197.86,197.82,5.0546]
[1738802705134,0.03393049,197.86,197.82,0.03324934]
[1738802706241,5.0541,197.85,197.82,0.03324934]
[1738802706541,0.03393049,197.86,197.82,0.03324934]
[1738802708339,5.0541,197.85,197.82,0.03324934]
[1738802708540,0.03393049,197.86,197.82,0.03324934]
[1738802709445,5.0545,197.83,197.82,0.03324934]
[1738802713940,5.0545,197.83,197.82,4.934e-05]
[1738802714450,13.8353114,197.84,197.71,3.0411]
[1738802714748,13.8353114,197.81,197.71,3.0411]
[1738802715146,13.8353114,197.78,197.66,1.5415]
[1738802715343,13.8353114,197.78,197.61,6.9045]
[1738802715344,13.8353114,197.75,197.62,13.8353114]
[1738802715544,5.0584,197.68,197.63,5.0596]
[1738802715746,13.8353114,197.72,197.61,3.0645]
[1738802715939,13.8353114,197.72,197.67,0.03521901]
[1738802716146,0.0388855,197.68,197.67,0.03521901]
[1738802716544,0.0388855,197.68,197.67,1.901e-05]
[1738802716545,5.0972855,197.68,197.67,1.901e-05]
[1738802719249,0.0388855,197.68,197.67,1.901e-05]
[1738802720448,5.0972855,197.68,197.67,1.901e-05]
[1738802722254,5.0594,197.64,197.54,1.4892]
[1738802722454,191.6166,197.67,197.54,1.4892]
[1738802722655,22.12225963,197.66,197.54,1.4892]
[1738802723257,22.12225963,197.62,197.51,3.069]
[1738802723460,22.15868072,197.62,197.58,0.03216307]
[1738802723755,5.0607,197.59,197.58,6.307e-05]
[1738802725662,5.0607,197.59,197.47,6.6344]
[1738802725663,5.0628,197.51,197.46,5.064]
[1738802725856,25.99868072,197.62,197.43,4.6591]
[1738802725857,191.5176,197.61,197.43,4.6591]
[1738802726259,5.0622,197.53,197.47,5.0637]
[1738802726464,191.5176,197.61,197.43,4.6591]
[1738802726660,191.5823,197.6,197.43,4.6591]
[1738802726861,5.0626,197.52,197.5,0.03357106]
[1738802727162,22.15931464,197.54,197.5,0.03357106]
[1738802727759,22.15931464,197.54,197.35,4.6391]
[1738802728063,22.12225963,197.54,197.35,4.6391]
[1738802728763,22.12225963,197.5,197.35,4.6391]
[1738802728960,0.03819774,197.46,197.43,0.03542347]
[1738802729767,5.0647,197.44,197.43,0.03542347]
[1738802731569,5.0647,197.44,197.43,2.347e-05]
[1738802732868,22.16045737,197.46,197.31,5.0678]
[1738802732869,5.0666,197.36,197.31,5.0678]
[1738802733966,5.10259515,197.35,197.32,0.03782743]
[1738802734268,3.0318,197.45,197.31,5.0678]
[1738802734469,0.03374431,197.35,197.32,0.03702148]
[1738802734668,5.0665,197.37,197.36,0.03409728]
[1738802734868,5.0665,197.37,197.31,5.0678]
[1738802735170,0.03212598,197.38,197.35,0.03844223]
[1738802736170,190.0,197.49,197.35,0.03844223]
[1738802736370,190.0,197.49,197.31,22.12225963]
[1738802736971,5.0648,197.43,197.38,5.0659]
[1738802737271,0.03809226,197.42,197.39,0.0384236]
[1738802738268,15.19,197.4,197.04,10.1496]
[1738802738472,5.0688,197.28,197.21,5.0704]
[1738802738667,22.12225963,197.33,197.22,1.6295]
[1738802738973,5.0687,197.28,197.22,1.6295]
[1738802739171,22.12225963,197.33,197.22,1.6295]
[1738802739672,0.03586025,197.29,197.26,0.03679932]
[1738802740077,5.0688,197.28,197.26,0.03679932]
[1738802741269,5.0689,197.27,197.26,0.03679932]
[1738802741973,0.03586025,197.29,197.27,5.0688]
[1738802742271,0.03586025,197.29,197.26,0.03679932]
[1738802742272,22.12225963,197.41,197.28,3.1118]
[1738802743173,5.0669,197.35,197.28,3.1118]
[1738802743373,0.03628149,197.36,197.33,0.03719568]
[1738802743568,5.0655,197.41,197.34,5.0671]
[1738802743769,5.0655,197.41,197.33,0.03719568]
[1738802743972,193.0706,197.46,197.33,0.03719568]
[1738802744277,193.0706,197.46,197.28,3.1118]
[1738802744576,1.5472,197.47,197.28,3.1118]
[1738802744777,1.5472,197.47,197.36,5.0665]
[1738802744976,0.03377545,197.39,197.36,5.0665]
[1738802745176,1.5472,197.47,197.36,5.0665]
[1738802745377,0.03829856,197.39,197.36,5.10351339]
[1738802745678,1.5472,197.47,197.36,5.10351339]
[1738802745975,0.03854362,197.39,197.36,5.10351339]
[1738802746177,1.5472,197.47,197.36,0.03701339]
[1738802746475,22.12225963,197.46,197.36,0.03701339]
[1738802746675,5.0661,197.38,197.36,0.03701339]
[1738802747878,5.0663,197.37,197.36,0.03701339]
[1738802748874,5.0663,197.37,197.36,1.339e-05]
[1738802749172,5.0684,197.29,197.28,3.1118]
[1738802750379,0.03360934,197.3,197.27,0.03814293]
[1738802750580,5.0686,197.28,197.27,0.03814293]
[1738802750775,22.12225963,197.34,197.21,3.0859]
[1738802751082,0.0370447,197.29,197.26,0.03860891]
[1738802751271,5.0691,197.27,197.26,0.03860891]
[1738802753585,5.0691,197.27,197.26,8.91e-06]
[1738802758487,3.84,197.27,196.92,24.26257047]
[1738802758697,22.12225963,197.21,197.01,4.6187]
[1738802758988,22.12225963,197.25,197.01,4.6187]
[1738802759188,22.12225963,197.25,197.07,22.12225963]
[1738802759587,5.0715,197.17,197.14,0.03620372]
[1738802759787,0.03600611,197.18,197.14,0.03620372]
[1738802760187,5.0717,197.16,197.14,0.03620372]
[1738802760587,0.03600611,197.18,197.14,0.03620372]
[1738802760791,5.072,197.15,197.14,0.03620372]
[1738802761183,0.03600611,197.18,197.14,0.03620372]
[1738802761390,5.0718,197.16,197.14,0.03620372]
[1738802762085,5.072,197.15,197.14,0.03620372]
[1738802764692,5.0742,197.07,197.01,4.6187]
[1738802764989,22.12225963,197.13,197.01,4.6187]
[1738802765793,5.0747,197.05,197.01,4.6187]
[1738802766192,5.0747,197.05,197.01,4.65366146]
[1738802766396,0.03311274,197.05,197.01,4.65366146]
[1738802767094,0.03311274,197.05,197.04,5.0748]
[1738802767296,0.03311274,197.05,197.01,4.65366146]
[1738802768798,0.03311274,197.05,197.02,5.0753]
[1738802769402,0.03311274,197.05,197.01,4.65366146]
[1738802771394,5.10771274,197.05,197.01,4.65366146]
[1738802771995,5.0753,197.02,197.01,0.03496146]
[1738802776197,22.12225963,197.03,196.82,22.12225963]
[1738802776395,22.12225963,196.99,196.87,1.5653]
[1738802777396,0.03581394,196.95,196.91,0.03260571]
[1738802777601,22.15807357,196.95,196.91,0.03260571]
[1738802777796,22.15807357,196.95,196.91,5.71e-06]
[1738802778196,22.15807357,196.95,196.79,5.081]
[1738802778398,22.12225963,196.91,196.76,54.15340505]
[1738802778610,22.12225963,196.83,196.76,54.15340505]
[1738802779102,22.12225963,196.83,196.71,3.1023]
[1738802779700,0.03606554,196.79,196.75,0.03756488]
[1738802780503,22.12225963,196.91,196.75,0.03756488]
[1738802780909,5.0801,196.84,196.76,5.0818]
[1738802781108,22.12225963,196.91,196.73,22.12225963]
[1738802781604,5.0798,196.85,196.79,5.0812]
[1738802781806,0.03499801,196.84,196.8,0.0330681]
[1738802782509,25.98225963,196.95,196.8,0.0330681]
[1738802782709,5.0777,196.93,196.84,5.0798]
[1738802782909,5.0777,196.93,196.78,1.5419]
[1738802783908,0.03557573,196.87,196.84,0.03656372]
[1738802784115,22.12225963,196.99,196.84,0.03656372]
[1738802784508,22.12225963,196.99,196.81,22.12225963]
[1738802785009,22.12225963,196.99,196.78,1.5419]
[1738802785214,0.03386671,196.92,196.88,0.03577232]
[1738802787914,0.03386671,196.92,196.9,5.0784]
[1738802788310,0.03386671,196.92,196.88,5.11447232]
[1738802788610,0.03386671,196.92,196.88,0.03577232]
[1738802789022,22.12225963,196.91,196.88,0.03577232]
[1738802792914,0.03386671,196.92,196.88,0.03577232]
[1738802795719,0.03386671,196.92,196.91,5.0782]
[1738802797421,0.03386671,196.92,196.89,5.0787]
[1738802797618,0.03386671,196.92,196.88,0.03577232]
[1738802798124,0.03386671,196.92,196.9,5.0784]
[1738802799017,0.03386671,196.92,196.91,5.0782]
[1738802799821,190.0,197.13,196.89,22.12225963]
[1738802800022,22.12225963,197.07,196.89,22.12225963]
[1738802800222,27.19655963,197.07,196.89,22.12225963]
[1738802800420,22.12225963,197.07,196.89,22.12225963]
[1738802800624,27.19655963,197.07,196.89,22.12225963]
[1738802801020,27.19655963,197.07,197.01,5.0755]
[1738802801727,0.03585675,197.05,197.02,0.03832619]
[1738802805328,5.11045675,197.05,197.02,0.03832619]
[1738802806024,0.03585675,197.05,197.02,0.03832619]
[1738802807918,22.12225963,197.03,196.86,3.86]
[1738802808521,22.12225963,197.03,196.83,20.40257047]
[1738802808725,22.12225963,196.99,196.83,20.40257047]
[1738802809123,0.03483072,196.93,196.91,5.0781]
[1738802809523,5.0771,196.96,196.91,5.0781]
[1738802809724,0.0375144,196.94,196.93,5.0776]
[1738802809923,22.12225963,197.03,196.83,20.40257047]
[1738802810228,0.03691535,196.95,196.94,5.0774]
[1738802810425,3.2064,197.06,196.88,22.12225963]
[1738802810622,0.03786618,196.96,196.93,0.0327686]
[1738802810822,5.075,197.04,196.95,5.0771]
[1738802811030,0.03881034,196.94,196.9,0.03288484]
[1738802811323,3.2064,197.06,196.88,22.12225963]
[1738802811529,1.5199,197.07,196.92,22.12225963]
[1738802811827,1.5199,197.07,196.93,3.1199]
[1738802812018,5.0743,197.06,197.0,5.0756]
[1738802812219,23.64215963,197.07,196.92,22.12225963]
[1738802812429,0.03860761,197.05,197.01,0.03536472]
[1738802813729,5.0749,197.04,197.01,0.03536472]
[1738802815130,5.0751,197.03,197.01,0.03536472]
[1738802815534,5.0748,197.04,197.01,0.03536472]
[1738802816233,0.03860761,197.05,197.02,5.0753]
[1738802816634,0.03860761,197.05,197.01,0.03536472]
[1738802817730,5.11320761,197.05,197.01,0.03536472]
[1738802820340,0.03860761,197.05,197.01,0.03536472]
[1738802820932,0.03860761,197.05,197.04,5.0748]
[1738802822631,0.03860761,197.05,197.01,0.03536472]
[1738802822839,0.03860761,197.05,197.02,5.0751]
[1738802823435,0.03860761,197.05,197.01,0.03536472]
[1738802824340,0.03860761,197.05,197.04,5.0748]
[1738802824539,191.4844,197.17,197.01,0.03536472]
[1738802824843,5.0725,197.13,197.0,22.12225963]
[1738802825036,1.4844,197.17,197.0,22.12225963]
[1738802825440,5.0722,197.15,197.1,5.0731]
[1738802825940,0.03262812,197.14,197.1,5.0731]
[1738802826141,0.03262812,197.14,197.11,5.073]
[1738802826342,0.03262812,197.14,197.07,0.03207813]
[1738802826740,0.03262812,197.14,197.13,5.0725]
[1738802828736,5.0704,197.22,197.17,5.0714]
[1738802828940,20.87402422,197.25,197.12,22.12225963]
[1738802829746,20.87402422,197.25,197.13,1.503]
[1738802829948,0.03421072,197.2,197.19,5.0709]
[1738802830343,20.87402422,197.28,197.14,1.5578]
[1738802830541,0.03323178,197.21,197.18,0.03210101]
[1738802830746,20.87402422,197.28,197.18,0.03210101]
[1738802830946,0.0375157,197.21,197.18,1.01e-06]
[1738802831247,0.0375157,197.21,197.04,22.12225963]
[1738802831248,5.0722,197.15,197.05,1.6222]
[1738802831738,5.0722,197.15,197.1,5.0732]
[1738802831939,5.0717,197.17,197.1,5.0732]
[1738802832141,5.0717,197.17,197.08,5.0736]
[1738802832343,0.03882568,197.15,197.12,0.03296114]
[1738802833548,5.0725,197.13,197.12,0.03296114]
[1738802834243,0.03882568,197.15,197.12,0.03296114]
[1738802835246,22.12225963,197.14,197.12,0.03296114]
[1738802835549,5.0725,197.13,197.12,6.114e-05]
[1738802836051,5.074,197.08,196.97,3.1613]
[1738802836255,5.074,197.08,196.98,1.4948]
[1738802836650,5.0741,197.07,197.02,5.0753]
[1738802836957,0.03806753,197.06,197.03,0.03808032]
[1738802837256,5.11246753,197.06,197.03,0.03808032]
[1738802838154,5.0748,197.04,197.03,0.03808032]
[1738802840058,5.0762,196.99,196.88,22.12225963]
[1738802840266,5.0762,196.99,196.89,1.4814]
[1738802840458,22.12225963,197.06,196.89,1.4814]
[1738802840657,5.0759,197.0,196.89,1.4814]
[1738802840861,5.0759,197.0,196.94,5.0771]
[1738802841057,22.12225963,197.06,196.89,1.4814]
[1738802841368,0.034083,196.99,196.95,0.03233256]
[1738802841558,0.034083,196.99,196.97,5.0766]
[1738802841961,0.034083,196.99,196.95,0.03233256]
[1738802842162,5.110183,196.99,196.95,0.03233256]
[1738802843067,5.0769,196.96,196.95,0.03233256]
[1738802843263,0.034083,196.99,196.95,0.03233256]
[1738802843667,5.110283,196.99,196.95,0.03233256]
[1738802845966,5.0766,196.97,196.95,0.03233256]
[1738802846165,0.034083,196.99,196.95,0.03233256]
[1738802848262,5.110183,196.99,196.95,0.03233256]
[1738802848563,0.034083,196.99,196.95,0.03233256]
[1738802849067,0.034083,196.99,196.98,5.0763]
[1738802852265,22.12225963,197.08,197.02,5.0753]
[1738802852964,22.12225963,197.12,196.97,1.5315]
[1738802853366,0.03791059,197.06,197.02,0.03258831]
[1738802853665,100.46,197.15,197.05,5.0745]
[1738802854272,0.03208416,197.12,197.08,0.03431194]
[1738802854774,5.0733,197.1,197.08,0.03431194]
[1738802856272,0.03208416,197.12,197.08,0.03431194]
[1738802856870,5.10478416,197.12,197.08,0.03431194]
[1738802857766,5.0735,197.09,197.08,0.03431194]
[1738802857971,22.15434379,197.12,196.97,1.5315]
[1738802858171,22.12225963,197.07,196.97,1.5315]
[1738802858371,5.0758,197.01,196.96,1.499]
[1738802858572,22.12225963,197.07,196.96,1.499]
[1738802858871,5.074,197.08,196.96,1.499]
[1738802859074,22.12225963,197.12,196.96,1.499]
[1738802859270,3.379e-05,197.03,197.0,0.03600825]
[1738802859574,22.12225963,197.12,196.96,1.499]
[1738802860267,22.12225963,197.08,196.96,1.499]
[1738802860472,0.03776624,197.06,197.02,0.03603714]
[1738802860671,5.0751,197.04,197.02,0.03603714]
[1738802860869,0.03776624,197.06,197.02,0.03603714]
[1738802861273,5.075,197.04,197.02,0.03603714]
[1738802861469,0.03776624,197.06,197.02,0.03603714]
[1738802862774,5.0751,197.03,197.02,0.03603714]
[1738802869487,13.9133411,197.05,197.02,0.03603714]
[1738802869685,5.0749,197.04,197.02,0.03603714]
[1738802871580,0.03776624,197.06,197.03,5.075]
[1738802872184,0.03776624,197.06,197.02,0.03603714]
[1738802872990,5.0748,197.05,197.02,0.03603714]
[1738802873388,5.0751,197.03,197.02,0.03603714]
[1738802873890,0.03776624,197.06,197.02,5.11113714]
[1738802874291,0.03776624,197.06,197.02,0.03603714]
[1738802874687,0.03776624,197.06,197.02,5.11133714]
[1738802874889,0.03776624,197.06,197.02,0.03603714]
[1738802875896,0.03776624,197.06,197.03,5.075]
[1738802876493,0.03776624,197.06,197.02,5.11133714]